[Event "Titled Tuesday Blitz April 11 Early 2023"]
[White "Reefat, Bin-Sattar"]
[Black "Fajdetic, Hrvoje"]
[WhiteFideId "10200207"]
[BlackFideId "14501945"]
[WhiteElo "2462"]
[BlackElo "2185"]
[Result "1-0"]
[Round "05"]
[TimeControl "180+2"]
[Date "2023.04.11"]
[WhiteClock "0:01:44"]
[BlackClock "0:00:02"]

1. e4 {[%clk 0:02:55]}  c5 {[%clk 0:02:57]} 2. b3 {[%clk 0:02:55]}  Nc6 {[%clk 0:02:56]} 3. Bb2 {[%clk 0:02:54]}  e5 {[%clk 0:02:56]} 4. Bb5 {[%clk 0:02:54]}  d6 {[%clk 0:02:55]} 5. Bxc6+ {[%clk 0:02:54]}  bxc6 {[%clk 0:02:56]} 6. Ne2 {[%clk 0:02:55]}  g6 {[%clk 0:02:54]} 7. O-O {[%clk 0:02:54]}  Bg7 {[%clk 0:02:54]} 8. f4 {[%clk 0:02:55]}  f6 {[%clk 0:02:41]} 9. f5 {[%clk 0:02:54]}  gxf5 {[%clk 0:02:32]} 10. exf5 {[%clk 0:02:53]}  Ne7 {[%clk 0:02:31]} 11. Ng3 {[%clk 0:02:53]}  O-O {[%clk 0:02:26]} 12. d3 {[%clk 0:02:50]}  Qe8 {[%clk 0:02:07]} 13. Qg4 {[%clk 0:02:47]}  Kh8 {[%clk 0:02:05]} 14. Nc3 {[%clk 0:02:44]}  Rg8 {[%clk 0:01:56]} 15. Qh3 {[%clk 0:02:44]}  Ng6 {[%clk 0:01:44]} 16. Rae1 {[%clk 0:02:42]}  d5 {[%clk 0:01:36]} 17. Ba3 {[%clk 0:02:19]}  Bf8 {[%clk 0:01:31]} 18. Qh5 {[%clk 0:02:19]}  Bxf5 {[%clk 0:00:41]} 19. Rxf5 {[%clk 0:02:17]}  Be7 {[%clk 0:00:35]} 20. Na4 {[%clk 0:02:09]}  Qf8 {[%clk 0:00:25]} 21. Ref1 {[%clk 0:02:06]}  Nf4 {[%clk 0:00:21]} 22. Qh4 {[%clk 0:02:00]}  Rg6 {[%clk 0:00:11]} 23. c4 {[%clk 0:01:56]}  Qg7 {[%clk 0:00:05]} 24. R1xf4 {[%clk 0:01:50]}  exf4 {[%clk 0:00:05]} 25. Qxf4 {[%clk 0:01:50]}  dxc4 {[%clk 0:00:03]} 26. bxc4 {[%clk 0:01:48]}  Rd8 {[%clk 0:00:02]} 27. Qf3 {[%clk 0:01:44]} 1-0


[Site "https://www.chess.com"]

[Event "Titled Tuesday Blitz April 11 Early 2023"]
[White "Yeritsyan, Hayk"]
[Black "Alahakoon, Isuru"]
[WhiteFideId "13307320"]
[BlackFideId "9900993"]
[WhiteElo "2417"]
[BlackElo "1995"]
[Result "1-0"]
[Round "05"]
[TimeControl "180+2"]
[Date "2023.04.11"]
[WhiteClock "0:00:07"]
[BlackClock "0:00:08"]

1. d4 {[%clk 0:02:15]}  d5 {[%clk 0:02:59]} 2. Nf3 {[%clk 0:02:15]}  Bf5 {[%clk 0:02:58]} 3. e3 {[%clk 0:02:14]}  e6 {[%clk 0:02:58]} 4. Bd3 {[%clk 0:02:15]}  Bxd3 {[%clk 0:02:56]} 5. Qxd3 {[%clk 0:02:16]}  Nd7 {[%clk 0:02:51]} 6. Nbd2 {[%clk 0:02:15]}  Ngf6 {[%clk 0:02:50]} 7. c3 {[%clk 0:02:15]}  Bd6 {[%clk 0:02:49]} 8. e4 {[%clk 0:02:15]}  dxe4 {[%clk 0:02:39]} 9. Nxe4 {[%clk 0:02:16]}  Nxe4 {[%clk 0:02:39]} 10. Qxe4 {[%clk 0:02:16]}  c6 {[%clk 0:02:25]} 11. O-O {[%clk 0:02:14]}  O-O {[%clk 0:02:22]} 12. Bg5 {[%clk 0:02:13]}  Qc7 {[%clk 0:02:14]} 13. Qe2 {[%clk 0:02:13]}  Rae8 {[%clk 0:02:08]} 14. Qc2 {[%clk 0:01:56]}  e5 {[%clk 0:02:02]} 15. dxe5 {[%clk 0:01:57]}  Nxe5 {[%clk 0:02:02]} 16. Nxe5 {[%clk 0:01:55]}  Bxe5 {[%clk 0:02:01]} 17. g3 {[%clk 0:01:51]}  h6 {[%clk 0:01:54]} 18. Be3 {[%clk 0:01:49]}  Re6 {[%clk 0:01:47]} 19. Rfd1 {[%clk 0:01:46]}  Rfe8 {[%clk 0:01:46]} 20. Rd3 {[%clk 0:01:45]}  h5 {[%clk 0:01:32]} 21. Rad1 {[%clk 0:01:29]}  h4 {[%clk 0:01:27]} 22. Rd7 {[%clk 0:01:29]}  Qb8 {[%clk 0:01:26]} 23. Qf5 {[%clk 0:01:22]}  Rf6 {[%clk 0:01:25]} 24. Qg4 {[%clk 0:01:08]}  hxg3 {[%clk 0:01:25]} 25. hxg3 {[%clk 0:01:08]}  Rg6 {[%clk 0:00:47]} 26. Qf3 {[%clk 0:00:59]}  Bxg3 {[%clk 0:00:46]} 27. Qxf7+ {[%clk 0:00:58]}  Kh7 {[%clk 0:00:46]} 28. Kf1 {[%clk 0:00:38]}  Qe5 {[%clk 0:00:40]} 29. Ke2 {[%clk 0:00:32]}  Qh5+ {[%clk 0:00:35]} 30. Qf3 {[%clk 0:00:25]}  Qxf3+ {[%clk 0:00:17]} 31. Kxf3 {[%clk 0:00:26]}  Be5 {[%clk 0:00:14]} 32. Rxb7 {[%clk 0:00:23]}  Rf8+ {[%clk 0:00:12]} 33. Ke2 {[%clk 0:00:22]}  a5 {[%clk 0:00:12]} 34. Rdd7 {[%clk 0:00:22]}  a4 {[%clk 0:00:10]} 35. Ra7 {[%clk 0:00:22]}  Re6 {[%clk 0:00:08]} 36. Rxa4 {[%clk 0:00:20]}  Bf4 {[%clk 0:00:08]} 37. Rdd4 {[%clk 0:00:18]}  Bxe3 {[%clk 0:00:08]} 38. fxe3 {[%clk 0:00:19]}  Rfe8 {[%clk 0:00:08]} 39. Rd3 {[%clk 0:00:15]}  Rh6 {[%clk 0:00:07]} 40. Rf4 {[%clk 0:00:14]}  Rh2+ {[%clk 0:00:07]} 41. Rf2 {[%clk 0:00:15]}  Rh3 {[%clk 0:00:08]} 42. Kd2 {[%clk 0:00:14]}  c5 {[%clk 0:00:08]} 43. b3 {[%clk 0:00:13]}  c4 {[%clk 0:00:08]} 44. bxc4 {[%clk 0:00:13]}  Re4 {[%clk 0:00:09]} 45. Re2 {[%clk 0:00:11]}  Rxc4 {[%clk 0:00:08]} 46. Rd4 {[%clk 0:00:12]}  Rc5 {[%clk 0:00:08]} 47. Kd3 {[%clk 0:00:12]}  Ra5 {[%clk 0:00:08]} 48. Rc2 {[%clk 0:00:10]}  Re5 {[%clk 0:00:07]} 49. Re4 {[%clk 0:00:09]}  Rd5+ {[%clk 0:00:08]} 50. Rd4 {[%clk 0:00:09]}  Re5 {[%clk 0:00:08]} 51. Re2 {[%clk 0:00:10]}  Ra5 {[%clk 0:00:08]} 52. c4 {[%clk 0:00:09]}  Ra3+ {[%clk 0:00:08]} 53. Ke4 {[%clk 0:00:09]}  Rh4+ {[%clk 0:00:08]} 54. Kd5 {[%clk 0:00:09]}  Ra5+ {[%clk 0:00:07]} 55. Kc6 {[%clk 0:00:09]}  Rh6+ {[%clk 0:00:07]} 56. Kb7 {[%clk 0:00:09]}  Rc5 {[%clk 0:00:08]} 57. Rb2 {[%clk 0:00:07]}  Rhc6 {[%clk 0:00:08]} 58. Rb4 {[%clk 0:00:06]}  Rc7+ {[%clk 0:00:08]} 59. Kb6 {[%clk 0:00:07]}  R7c6+ {[%clk 0:00:08]} 60. Kb7 {[%clk 0:00:07]}  Rc7+ {[%clk 0:00:08]} 61. Kb8 {[%clk 0:00:07]}  Rc8+ {[%clk 0:00:08]} 62. Ka7 {[%clk 0:00:07]}  R8c7+ {[%clk 0:00:08]} 63. Rb7 {[%clk 0:00:08]}  R7c6 {[%clk 0:00:08]} 64. a4 {[%clk 0:00:06]}  Ra5+ {[%clk 0:00:08]} 65. Kb8 {[%clk 0:00:06]}  Rxa4 {[%clk 0:00:08]} 66. Rdd7 {[%clk 0:00:05]}  Rg6 {[%clk 0:00:08]} 67. c5 {[%clk 0:00:05]}  Rc4 {[%clk 0:00:08]} 68. Rdc7 {[%clk 0:00:05]}  Rg5 {[%clk 0:00:08]} 69. c6 {[%clk 0:00:05]}  Rg6 {[%clk 0:00:09]} 70. Kc8 {[%clk 0:00:04]}  Rgxc6 {[%clk 0:00:08]} 71. Kd7 {[%clk 0:00:04]}  Rxc7+ {[%clk 0:00:08]} 72. Rxc7 {[%clk 0:00:05]}  Rxc7+ {[%clk 0:00:07]} 73. Kxc7 {[%clk 0:00:05]}  Kg6 {[%clk 0:00:06]} 74. e4 {[%clk 0:00:05]}  Kf6 {[%clk 0:00:07]} 75. Kd6 {[%clk 0:00:05]}  g5 {[%clk 0:00:07]} 76. e5+ {[%clk 0:00:05]}  Kf5 {[%clk 0:00:06]} 77. e6 {[%clk 0:00:06]}  g4 {[%clk 0:00:07]} 78. e7 {[%clk 0:00:06]}  g3 {[%clk 0:00:07]} 79. e8=Q {[%clk 0:00:07]}  g2 {[%clk 0:00:08]} 80. Qe3 {[%clk 0:00:07]} 1-0


[Site "https://www.chess.com"]

[Event "Titled Tuesday Blitz April 11 Early 2023"]
[White "sebastianmarinp"]
[Black "Mazarini41"]
[WhiteElo "2288"]
[BlackElo "2417"]
[Result "0-1"]
[Round "05"]
[TimeControl "180+2"]
[Date "2023.04.11"]
[WhiteClock "0:00:25"]
[BlackClock "0:00:18"]

1. e4 {[%clk 0:03:00]}  e6 {[%clk 0:02:55]} 2. d4 {[%clk 0:02:59]}  d5 {[%clk 0:02:55]} 3. Nc3 {[%clk 0:02:59]}  Bb4 {[%clk 0:02:54]} 4. e5 {[%clk 0:02:59]}  c5 {[%clk 0:02:52]} 5. a3 {[%clk 0:02:59]}  Bxc3+ {[%clk 0:02:52]} 6. bxc3 {[%clk 0:03:00]}  Ne7 {[%clk 0:02:51]} 7. a4 {[%clk 0:02:59]}  Qc7 {[%clk 0:02:49]} 8. Nf3 {[%clk 0:02:59]}  b6 {[%clk 0:02:47]} 9. Bb5+ {[%clk 0:02:58]}  Bd7 {[%clk 0:02:36]} 10. O-O {[%clk 0:02:58]}  O-O {[%clk 0:02:33]} 11. Ng5 {[%clk 0:02:43]}  Bxb5 {[%clk 0:02:30]} 12. axb5 {[%clk 0:02:44]}  h6 {[%clk 0:02:22]} 13. Nh3 {[%clk 0:02:41]}  a6 {[%clk 0:02:22]} 14. Qe2 {[%clk 0:02:26]}  Qb7 {[%clk 0:02:14]} 15. Ba3 {[%clk 0:02:14]}  Rc8 {[%clk 0:02:13]} 16. dxc5 {[%clk 0:01:58]}  bxc5 {[%clk 0:02:12]} 17. Rfb1 {[%clk 0:01:53]}  axb5 {[%clk 0:02:02]} 18. Rxb5 {[%clk 0:01:49]}  Qa6 {[%clk 0:02:00]} 19. g4 {[%clk 0:01:35]}  Nd7 {[%clk 0:01:27]} 20. Bb2 {[%clk 0:01:30]}  Qc6 {[%clk 0:01:26]} 21. Rba5 {[%clk 0:01:25]}  Rxa5 {[%clk 0:01:16]} 22. Rxa5 {[%clk 0:01:26]}  Qc7 {[%clk 0:01:02]} 23. Ra1 {[%clk 0:01:09]}  Qxe5 {[%clk 0:00:57]} 24. Qb5 {[%clk 0:01:02]}  Qc7 {[%clk 0:00:39]} 25. c4 {[%clk 0:01:02]}  Rb8 {[%clk 0:00:36]} 26. Qa5 {[%clk 0:00:50]}  Qxa5 {[%clk 0:00:35]} 27. Rxa5 {[%clk 0:00:51]}  Rxb2 {[%clk 0:00:33]} 28. Ra7 {[%clk 0:00:50]}  Ne5 {[%clk 0:00:22]} 29. Rxe7 {[%clk 0:00:49]}  Nxc4 {[%clk 0:00:23]} 30. Re8+ {[%clk 0:00:46]}  Kh7 {[%clk 0:00:23]} 31. f4 {[%clk 0:00:43]}  Rxc2 {[%clk 0:00:22]} 32. f5 {[%clk 0:00:42]}  exf5 {[%clk 0:00:19]} 33. gxf5 {[%clk 0:00:41]}  Nd6 {[%clk 0:00:17]} 34. Rd8 {[%clk 0:00:38]}  Nxf5 {[%clk 0:00:16]} 35. Rxd5 {[%clk 0:00:39]}  Ne3 {[%clk 0:00:15]} 36. Rd7 {[%clk 0:00:38]}  Rg2+ {[%clk 0:00:15]} 37. Kh1 {[%clk 0:00:37]}  Rb2 {[%clk 0:00:16]} 38. Rxf7 {[%clk 0:00:34]}  Rb1+ {[%clk 0:00:14]} 39. Ng1 {[%clk 0:00:34]}  c4 {[%clk 0:00:15]} 40. Rf3 {[%clk 0:00:31]}  c3 {[%clk 0:00:14]} 41. Rxe3 {[%clk 0:00:30]}  c2 {[%clk 0:00:15]} 42. Rc3 {[%clk 0:00:30]}  c1=Q {[%clk 0:00:16]} 43. Rxc1 {[%clk 0:00:30]}  Rxc1 {[%clk 0:00:16]} 44. Kg2 {[%clk 0:00:31]}  Kg6 {[%clk 0:00:16]} 45. Nf3 {[%clk 0:00:32]}  Rc2+ {[%clk 0:00:16]} 46. Kg3 {[%clk 0:00:32]}  Rc3 {[%clk 0:00:16]} 47. h4 {[%clk 0:00:33]}  Kf5 {[%clk 0:00:14]} 48. Kf2 {[%clk 0:00:29]}  Kf4 {[%clk 0:00:14]} 49. Nd4 {[%clk 0:00:28]}  Rh3 {[%clk 0:00:14]} 50. Ne2+ {[%clk 0:00:27]}  Kg4 {[%clk 0:00:14]} 51. Kg2 {[%clk 0:00:27]}  Re3 {[%clk 0:00:13]} 52. Ng1 {[%clk 0:00:26]}  Kxh4 {[%clk 0:00:12]} 53. Kf2 {[%clk 0:00:26]}  Ra3 {[%clk 0:00:12]} 54. Nf3+ {[%clk 0:00:26]}  Rxf3+ {[%clk 0:00:12]} 55. Kxf3 {[%clk 0:00:25]}  Kh3 {[%clk 0:00:13]} 56. Kf2 {[%clk 0:00:25]}  g5 {[%clk 0:00:14]} 57. Kg1 {[%clk 0:00:25]}  g4 {[%clk 0:00:14]} 58. Kh1 {[%clk 0:00:26]}  Kg3 {[%clk 0:00:15]} 59. Kg1 {[%clk 0:00:27]}  h5 {[%clk 0:00:16]} 60. Kh1 {[%clk 0:00:28]}  Kf2 {[%clk 0:00:16]} 61. Kh2 {[%clk 0:00:28]}  g3+ {[%clk 0:00:17]} 62. Kh3 {[%clk 0:00:27]}  g2 {[%clk 0:00:18]} 63. Kh4 {[%clk 0:00:25]}  g1=Q {[%clk 0:00:18]} 0-1


[Site "https://www.chess.com"]

[Event "Titled Tuesday Blitz April 11 Early 2023"]
[White "Makhmudov, Shukhrat"]
[Black "Toktomushev, Teimur"]
[WhiteFideId "14200775"]
[BlackFideId "14176726"]
[WhiteElo "2135"]
[BlackElo "2116"]
[Result "1-0"]
[Round "05"]
[TimeControl "180+2"]
[Date "2023.04.11"]
[WhiteClock "0:00:11"]
[BlackClock "0:00:02"]

1. e4 {[%clk 0:02:52]}  c5 {[%clk 0:02:59]} 2. Nf3 {[%clk 0:02:52]}  e6 {[%clk 0:02:58]} 3. d4 {[%clk 0:02:53]}  cxd4 {[%clk 0:02:59]} 4. Nxd4 {[%clk 0:02:54]}  a6 {[%clk 0:03:00]} 5. Nc3 {[%clk 0:02:54]}  b5 {[%clk 0:03:00]} 6. a3 {[%clk 0:02:54]}  Bb7 {[%clk 0:03:00]} 7. Bd3 {[%clk 0:02:54]}  Nc6 {[%clk 0:03:01]} 8. Nxc6 {[%clk 0:02:54]}  Bxc6 {[%clk 0:03:02]} 9. O-O {[%clk 0:02:54]}  Qc7 {[%clk 0:03:02]} 10. f4 {[%clk 0:02:54]}  d6 {[%clk 0:02:36]} 11. Kh1 {[%clk 0:02:53]}  Be7 {[%clk 0:02:35]} 12. Qg4 {[%clk 0:02:51]}  g6 {[%clk 0:02:26]} 13. f5 {[%clk 0:02:51]}  Nf6 {[%clk 0:02:24]} 14. Qh3 {[%clk 0:02:46]}  gxf5 {[%clk 0:01:31]} 15. exf5 {[%clk 0:02:43]}  Rg8 {[%clk 0:01:32]} 16. Rg1 {[%clk 0:02:27]}  e5 {[%clk 0:01:23]} 17. Be2 {[%clk 0:02:16]}  d5 {[%clk 0:01:18]} 18. Bd2 {[%clk 0:02:04]}  d4 {[%clk 0:01:13]} 19. Na2 {[%clk 0:02:04]}  e4 {[%clk 0:00:46]} 20. Bb4 {[%clk 0:01:56]}  e3 {[%clk 0:00:31]} 21. Bxe7 {[%clk 0:01:55]}  Qxe7 {[%clk 0:00:25]} 22. Nb4 {[%clk 0:01:53]}  Ne4 {[%clk 0:00:17]} 23. Rgf1 {[%clk 0:01:38]}  Nf2+ {[%clk 0:00:13]} 24. Rxf2 {[%clk 0:01:38]}  exf2 {[%clk 0:00:14]} 25. Bf1 {[%clk 0:01:30]}  Qe1 {[%clk 0:00:05]} 26. Nxc6 {[%clk 0:01:01]}  Qxa1 {[%clk 0:00:05]} 27. Qd3 {[%clk 0:01:02]}  Kd7 {[%clk 0:00:03]} 28. Nxd4 {[%clk 0:00:57]}  Kc7 {[%clk 0:00:03]} 29. Qc3+ {[%clk 0:00:42]}  Kd6 {[%clk 0:00:04]} 30. Qc6+ {[%clk 0:00:40]}  Ke5 {[%clk 0:00:04]} 31. Nf3+ {[%clk 0:00:40]}  Kxf5 {[%clk 0:00:03]} 32. Qc5+ {[%clk 0:00:35]}  Ke6 {[%clk 0:00:03]} 33. Qxf2 {[%clk 0:00:35]}  Rad8 {[%clk 0:00:02]} 34. Kg1 {[%clk 0:00:26]}  Rd1 {[%clk 0:00:01]} 35. Nd2 {[%clk 0:00:22]}  Rxd2 {[%clk 0:00:01]} 36. Qxd2 {[%clk 0:00:21]}  Kf6 {[%clk 0:00:02]} 37. Qd4+ {[%clk 0:00:19]}  Kg6 {[%clk 0:00:02]} 38. Kf2 {[%clk 0:00:19]}  Re8 {[%clk 0:00:01]} 39. Bd3+ {[%clk 0:00:19]}  Kh6 {[%clk 0:00:01]} 40. Qf6+ {[%clk 0:00:20]}  Kh5 {[%clk 0:00:01]} 41. Qxf7+ {[%clk 0:00:19]}  Kg5 {[%clk 0:00:01]} 42. Qxe8 {[%clk 0:00:17]}  Qxb2 {[%clk 0:00:02]} 43. Qe7+ {[%clk 0:00:14]}  Kf4 {[%clk 0:00:02]} 44. g3+ {[%clk 0:00:12]}  Kg4 {[%clk 0:00:02]} 45. Qh4# {[%clk 0:00:11]} 1-0


[Site "https://www.chess.com"]

[Event "Titled Tuesday Blitz April 11 Early 2023"]
[White "Zhukova, Natalia"]
[Black "Skaric, Djuro"]
[WhiteFideId "14101513"]
[BlackFideId "934569"]
[WhiteElo "2297"]
[BlackElo "2282"]
[Result "0-1"]
[Round "05"]
[TimeControl "180+2"]
[Date "2023.04.11"]
[WhiteClock "0:00:04"]
[BlackClock "0:00:22"]

1. d4 {[%clk 0:02:49]}  d6 {[%clk 0:03:00]} 2. c4 {[%clk 0:02:49]}  g6 {[%clk 0:03:01]} 3. Nc3 {[%clk 0:02:49]}  Bg7 {[%clk 0:03:01]} 4. e4 {[%clk 0:02:49]}  Nf6 {[%clk 0:03:00]} 5. f4 {[%clk 0:02:49]}  O-O {[%clk 0:03:00]} 6. Nf3 {[%clk 0:02:49]}  c5 {[%clk 0:03:00]} 7. d5 {[%clk 0:02:49]}  e6 {[%clk 0:02:59]} 8. dxe6 {[%clk 0:02:50]}  fxe6 {[%clk 0:02:59]} 9. Bd3 {[%clk 0:02:51]}  Nc6 {[%clk 0:02:58]} 10. O-O {[%clk 0:02:51]}  d5 {[%clk 0:02:48]} 11. cxd5 {[%clk 0:02:44]}  exd5 {[%clk 0:02:48]} 12. Nxd5 {[%clk 0:02:29]}  Bg4 {[%clk 0:02:30]} 13. Be3 {[%clk 0:01:52]}  Nd4 {[%clk 0:02:26]} 14. Bxd4 {[%clk 0:01:48]}  cxd4 {[%clk 0:02:26]} 15. Nxf6+ {[%clk 0:01:41]}  Qxf6 {[%clk 0:02:22]} 16. Qb3+ {[%clk 0:01:41]}  Kh8 {[%clk 0:02:17]} 17. Ne5 {[%clk 0:01:28]}  Be6 {[%clk 0:02:11]} 18. Bc4 {[%clk 0:01:26]}  Bxc4 {[%clk 0:02:11]} 19. Qxc4 {[%clk 0:01:27]}  Qe7 {[%clk 0:02:10]} 20. Qxd4 {[%clk 0:01:16]}  Rxf4 {[%clk 0:01:50]} 21. Rxf4 {[%clk 0:00:59]}  Bxe5 {[%clk 0:01:50]} 22. Qf2 {[%clk 0:00:50]}  Bxf4 {[%clk 0:01:50]} 23. Qxf4 {[%clk 0:00:51]}  Re8 {[%clk 0:01:49]} 24. Re1 {[%clk 0:00:46]}  Rf8 {[%clk 0:01:48]} 25. Qe3 {[%clk 0:00:45]}  Qe5 {[%clk 0:01:48]} 26. Re2 {[%clk 0:00:40]}  Rd8 {[%clk 0:01:26]} 27. g3 {[%clk 0:00:34]}  b6 {[%clk 0:01:21]} 28. Kg2 {[%clk 0:00:34]}  Kg7 {[%clk 0:01:20]} 29. Rc2 {[%clk 0:00:30]}  Rd7 {[%clk 0:01:20]} 30. Rf2 {[%clk 0:00:20]}  Re7 {[%clk 0:01:14]} 31. Re2 {[%clk 0:00:14]}  h6 {[%clk 0:01:11]} 32. Qd3 {[%clk 0:00:14]}  h5 {[%clk 0:01:01]} 33. h4 {[%clk 0:00:14]}  Kh7 {[%clk 0:00:58]} 34. Kh2 {[%clk 0:00:12]}  Rf7 {[%clk 0:00:58]} 35. Kg2 {[%clk 0:00:09]}  Qf6 {[%clk 0:00:58]} 36. Qe3 {[%clk 0:00:07]}  Qf1+ {[%clk 0:00:58]} 37. Kh2 {[%clk 0:00:08]}  Qf6 {[%clk 0:00:56]} 38. e5 {[%clk 0:00:08]}  Qe6 {[%clk 0:00:56]} 39. Qe4 {[%clk 0:00:08]}  Re7 {[%clk 0:00:56]} 40. Qf4 {[%clk 0:00:07]}  Qxa2 {[%clk 0:00:55]} 41. Qf6 {[%clk 0:00:06]}  Qf7 {[%clk 0:00:54]} 42. Qxf7+ {[%clk 0:00:06]}  Rxf7 {[%clk 0:00:54]} 43. Kg2 {[%clk 0:00:06]}  Kg7 {[%clk 0:00:53]} 44. Re3 {[%clk 0:00:03]}  Kf8 {[%clk 0:00:53]} 45. Rc3 {[%clk 0:00:02]}  Re7 {[%clk 0:00:51]} 46. Re3 {[%clk 0:00:01]}  Kf7 {[%clk 0:00:52]} 47. Kf3 {[%clk 0:00:01]}  Ke6 {[%clk 0:00:52]} 48. Kf4 {[%clk 0:00:02]}  Rc7 {[%clk 0:00:52]} 49. Kg5 {[%clk 0:00:02]}  Kf7 {[%clk 0:00:47]} 50. e6+ {[%clk 0:00:02]}  Ke7 {[%clk 0:00:45]} 51. Kxg6 {[%clk 0:00:02]}  Rc5 {[%clk 0:00:45]} 52. g4 {[%clk 0:00:01]}  hxg4 {[%clk 0:00:44]} 53. h5 {[%clk 0:00:02]}  Rc6 {[%clk 0:00:40]} 54. h6 {[%clk 0:00:02]}  g3 {[%clk 0:00:37]} 55. h7 {[%clk 0:00:02]}  g2 {[%clk 0:00:38]} 56. Rg3 {[%clk 0:00:01]}  Rxe6+ {[%clk 0:00:37]} 57. Kg7 {[%clk 0:00:02]}  Re1 {[%clk 0:00:22]} 58. Rxg2 {[%clk 0:00:02]}  Rh1 {[%clk 0:00:21]} 59. h8=Q {[%clk 0:00:02]}  Rxh8 {[%clk 0:00:22]} 60. Kxh8 {[%clk 0:00:03]}  Kd6 {[%clk 0:00:22]} 61. Kg7 {[%clk 0:00:03]}  Kc5 {[%clk 0:00:22]} 62. Kf6 {[%clk 0:00:04]}  Kc4 {[%clk 0:00:22]} 0-1


[Site "https://www.chess.com"]

[Event "Titled Tuesday Blitz April 11 Early 2023"]
[White "Chabris, Christopher"]
[Black "Kabilov, Amin"]
[WhiteFideId "2005263"]
[BlackFideId "14700859"]
[WhiteElo "2272"]
[BlackElo "2110"]
[Result "1-0"]
[Round "05"]
[TimeControl "180+2"]
[Date "2023.04.11"]
[WhiteClock "0:01:00"]
[BlackClock "0:00:24"]

1. e4 {[%clk 0:03:00]}  e5 {[%clk 0:02:58]} 2. Nf3 {[%clk 0:03:00]}  d6 {[%clk 0:02:59]} 3. d4 {[%clk 0:02:59]}  exd4 {[%clk 0:02:59]} 4. Nxd4 {[%clk 0:02:59]}  Nf6 {[%clk 0:03:00]} 5. Nc3 {[%clk 0:02:59]}  Be7 {[%clk 0:03:01]} 6. g3 {[%clk 0:02:59]}  d5 {[%clk 0:02:59]} 7. e5 {[%clk 0:02:58]}  Ng4 {[%clk 0:02:59]} 8. Bg2 {[%clk 0:02:49]}  Nxe5 {[%clk 0:02:58]} 9. Nxd5 {[%clk 0:02:45]}  O-O {[%clk 0:02:36]} 10. Bf4 {[%clk 0:02:31]}  Bg4 {[%clk 0:02:30]} 11. Qd2 {[%clk 0:02:21]}  Bd6 {[%clk 0:02:17]} 12. Ne3 {[%clk 0:02:04]}  Bc8 {[%clk 0:02:09]} 13. O-O-O {[%clk 0:02:04]}  Qe8 {[%clk 0:01:55]} 14. Ndf5 {[%clk 0:01:46]}  Qa4 {[%clk 0:01:21]} 15. Kb1 {[%clk 0:01:41]}  Nc4 {[%clk 0:00:51]} 16. Nxc4 {[%clk 0:01:39]}  Bxf4 {[%clk 0:00:39]} 17. Qxf4 {[%clk 0:01:31]}  Bxf5 {[%clk 0:00:39]} 18. Qxf5 {[%clk 0:01:19]}  Qxc4 {[%clk 0:00:38]} 19. Bxb7 {[%clk 0:01:19]}  Nc6 {[%clk 0:00:35]} 20. b3 {[%clk 0:01:10]}  Qc3 {[%clk 0:00:24]} 21. Rd3 {[%clk 0:01:00]} 1-0


[Site "https://www.chess.com"]

[Event "Titled Tuesday Blitz April 11 Early 2023"]
[White "Van Osch, Mees"]
[Black "lluiss"]
[WhiteFideId "1035967"]
[WhiteElo "2324"]
[BlackElo "2261"]
[Result "1-0"]
[Round "05"]
[TimeControl "180+2"]
[Date "2023.04.11"]
[WhiteClock "0:02:48"]
[BlackClock "0:02:21"]

1. e4 {[%clk 0:02:58]}  c5 {[%clk 0:02:59]} 2. Nf3 {[%clk 0:02:58]}  d6 {[%clk 0:02:59]} 3. d4 {[%clk 0:02:58]}  cxd4 {[%clk 0:02:59]} 4. Nxd4 {[%clk 0:02:59]}  Nf6 {[%clk 0:02:59]} 5. Nc3 {[%clk 0:03:00]}  g6 {[%clk 0:02:59]} 6. Be3 {[%clk 0:02:59]}  Bg7 {[%clk 0:02:59]} 7. f3 {[%clk 0:02:59]}  O-O {[%clk 0:02:59]} 8. Qd2 {[%clk 0:03:00]}  Nc6 {[%clk 0:02:59]} 9. Nxc6 {[%clk 0:03:00]}  bxc6 {[%clk 0:02:58]} 10. Bh6 {[%clk 0:03:01]}  Bxh6 {[%clk 0:02:42]} 11. Qxh6 {[%clk 0:03:02]}  Qb6 {[%clk 0:02:41]} 12. b3 {[%clk 0:02:52]}  Qd4 {[%clk 0:02:24]} 13. Qd2 {[%clk 0:02:50]}  Qxc3 {[%clk 0:02:21]} 14. Qxc3 {[%clk 0:02:48]} 1-0


[Site "https://www.chess.com"]

[Event "Titled Tuesday Blitz April 11 Early 2023"]
[White "Golubev, Mikhail"]
[Black "Saiz Rodriguez, Daniel Evelio"]
[WhiteFideId "14100983"]
[BlackFideId "3523420"]
[WhiteElo "2374"]
[BlackElo "2208"]
[Result "0-1"]
[Round "05"]
[TimeControl "180+2"]
[Date "2023.04.11"]
[WhiteClock "0:00:01"]
[BlackClock "0:00:06"]

1. e4 {[%clk 0:03:00]}  c5 {[%clk 0:03:00]} 2. Nf3 {[%clk 0:03:00]}  Nc6 {[%clk 0:02:59]} 3. Nc3 {[%clk 0:02:58]}  g6 {[%clk 0:02:59]} 4. d4 {[%clk 0:02:57]}  cxd4 {[%clk 0:03:00]} 5. Nxd4 {[%clk 0:02:57]}  Bg7 {[%clk 0:03:00]} 6. Be3 {[%clk 0:02:56]}  Nf6 {[%clk 0:02:59]} 7. Nxc6 {[%clk 0:02:56]}  bxc6 {[%clk 0:02:58]} 8. e5 {[%clk 0:02:56]}  Ng8 {[%clk 0:02:57]} 9. Bd4 {[%clk 0:02:52]}  Qa5 {[%clk 0:02:46]} 10. f4 {[%clk 0:02:50]}  c5 {[%clk 0:02:36]} 11. Be3 {[%clk 0:02:43]}  Nh6 {[%clk 0:02:29]} 12. Qd5 {[%clk 0:02:13]}  Rb8 {[%clk 0:02:29]} 13. O-O-O {[%clk 0:02:13]}  Qb4 {[%clk 0:01:32]} 14. Qb3 {[%clk 0:02:12]}  Nf5 {[%clk 0:01:24]} 15. Qxb4 {[%clk 0:01:53]}  cxb4 {[%clk 0:01:22]} 16. Bxa7 {[%clk 0:01:52]}  Ra8 {[%clk 0:00:56]} 17. Nb5 {[%clk 0:01:51]}  O-O {[%clk 0:00:56]} 18. Bc4 {[%clk 0:01:39]}  Ne3 {[%clk 0:00:52]} 19. Bd5 {[%clk 0:01:24]}  Nxd5 {[%clk 0:00:31]} 20. Rxd5 {[%clk 0:01:24]}  Bb7 {[%clk 0:00:29]} 21. Rxd7 {[%clk 0:01:13]}  Bc6 {[%clk 0:00:27]} 22. Rxe7 {[%clk 0:01:12]}  Bxb5 {[%clk 0:00:26]} 23. Rd1 {[%clk 0:01:06]}  Rfc8 {[%clk 0:00:25]} 24. e6 {[%clk 0:00:17]}  fxe6 {[%clk 0:00:22]} 25. Bd4 {[%clk 0:00:17]}  Bxd4 {[%clk 0:00:20]} 26. Rxd4 {[%clk 0:00:18]}  Re8 {[%clk 0:00:17]} 27. Rb7 {[%clk 0:00:16]}  Bc6 {[%clk 0:00:17]} 28. Rbxb4 {[%clk 0:00:16]}  Bxg2 {[%clk 0:00:17]} 29. a4 {[%clk 0:00:16]}  e5 {[%clk 0:00:14]} 30. fxe5 {[%clk 0:00:14]}  Rxe5 {[%clk 0:00:15]} 31. b3 {[%clk 0:00:14]}  Bc6 {[%clk 0:00:14]} 32. Kb2 {[%clk 0:00:12]}  h5 {[%clk 0:00:12]} 33. Rbc4 {[%clk 0:00:12]}  Be8 {[%clk 0:00:11]} 34. Rc7 {[%clk 0:00:11]}  Bf7 {[%clk 0:00:10]} 35. Rdd7 {[%clk 0:00:09]}  Rf5 {[%clk 0:00:11]} 36. c4 {[%clk 0:00:08]}  g5 {[%clk 0:00:11]} 37. Ka3 {[%clk 0:00:07]}  g4 {[%clk 0:00:12]} 38. c5 {[%clk 0:00:06]}  h4 {[%clk 0:00:12]} 39. Rd4 {[%clk 0:00:06]}  Rg5 {[%clk 0:00:11]} 40. Rf4 {[%clk 0:00:06]}  Rf8 {[%clk 0:00:11]} 41. Re7 {[%clk 0:00:03]}  g3 {[%clk 0:00:11]} 42. hxg3 {[%clk 0:00:02]}  hxg3 {[%clk 0:00:12]} 43. Rf1 {[%clk 0:00:02]}  g2 {[%clk 0:00:13]} 44. Rg1 {[%clk 0:00:02]}  Bd5 {[%clk 0:00:13]} 45. a5 {[%clk 0:00:02]}  Rf1 {[%clk 0:00:13]} 46. Re1 {[%clk 0:00:01]}  Rxe1 {[%clk 0:00:12]} 47. Rxe1 {[%clk 0:00:01]}  g1=Q {[%clk 0:00:13]} 48. Rxg1 {[%clk 0:00:02]}  Rxg1 {[%clk 0:00:14]} 49. b4 {[%clk 0:00:01]}  Kf7 {[%clk 0:00:11]} 50. b5 {[%clk 0:00:01]}  Ra1+ {[%clk 0:00:09]} 51. Kb4 {[%clk 0:00:01]}  Rb1+ {[%clk 0:00:09]} 52. Ka4 {[%clk 0:00:01]}  Bc4 {[%clk 0:00:06]} 53. b6 {[%clk 0:00:01]}  Bb5+ {[%clk 0:00:06]} 0-1


[Site "https://www.chess.com"]